fUSD/lending_fUSD_20250618
["ID","MTS","AMOUNT","RATE_DAILY","PERIOD"]
[366395612,1750230641372,-180.59065864,0.00016438,2]
[366395613,1750230641381,-614.64,0.00016438,2]
[366395616,1750230641391,-490.0,0.00016438,2]
[366395618,1750230641401,-490.0,0.00016438,2]
[366395620,1750230641410,-543.59,0.00016438,2]
[366395622,1750230641419,-490.0,0.00016438,2]
[366395624,1750230641429,-490.0,0.00016438,2]
[366395626,1750230641439,-490.0,0.00016438,2]
[366395628,1750230641448,-645.48,0.00016438,2]
[366395630,1750230641457,-1486.82,0.00016438,2]
[366395632,1750230641467,-911.53,0.00016438,2]
[366395634,1750230641476,-734.83,0.00016438,2]
[366395636,1750230641486,-727.86,0.00016438,2]
[366395638,1750230641495,-490.0,0.00016438,2]
[366395640,1750230641504,-490.0,0.00016438,2]
[366395642,1750230641514,-490.0,0.00016438,2]
[366395643,1750230641523,-490.0,0.00016438,2]
[366395645,1750230641532,-151.0,0.00016438,2]
[366395648,1750230641542,-490.0,0.00016438,2]
[366395650,1750230641551,-490.0,0.00016438,2]
[366395652,1750230641560,-490.0,0.00016438,2]
[366395654,1750230641569,-534.16,0.00016438,2]
[366395656,1750230641578,-490.0,0.00016438,2]
[366395658,1750230641587,-490.0,0.00016438,2]
[366395660,1750230641596,-958.66,0.00016438,2]
[366395662,1750230641605,-490.0,0.00016438,2]
[366395663,1750230641615,-1751.6,0.00016438,2]
[366395666,1750230641625,-490.0,0.00016438,2]
[366395667,1750230641635,-490.0,0.00016438,2]
[366395670,1750230641645,-490.0,0.00016438,2]
[366395672,1750230641655,-712.01,0.00016438,2]
[366395673,1750230641665,-496.41,0.00016438,2]
[366395676,1750230641675,-490.82415984,0.00016438,2]
[366395677,1750230641685,-490.0,0.00016438,2]
[366395679,1750230641694,-1124.25,0.00016438,2]
[366395681,1750230641704,-490.0,0.00016438,2]
[366395683,1750230641713,-1143.72,0.00016438,2]
[366395685,1750230641723,-732.44,0.00016438,2]
[366395687,1750230641733,-906.12,0.00016438,2]
[366395689,1750230641742,-490.0,0.00016438,2]
[366395691,1750230641752,-737.19,0.00016438,2]
[366395693,1750230641761,-490.0,0.00016438,2]
[366395695,1750230641771,-555.71,0.00016438,2]
[366395697,1750230641780,-569.21733593,0.00016438,2]
[366395699,1750230641790,-490.0,0.00016438,2]
[366395701,1750230641800,-1187.52,0.00016438,2]
[366395703,1750230641810,-491.69747001,0.00016438,2]
[366395705,1750230641819,-490.0,0.00016438,2]
[366395707,1750230641829,-707.3,0.00016438,2]
[366395709,1750230641839,-490.0,0.00016438,2]
[366395711,1750230641847,-490.0,0.00016438,2]
[366395713,1750230641859,-490.0,0.00016438,2]
[366395716,1750230641868,-1541.15,0.00016438,2]
[366395718,1750230641878,-674.55,0.00016438,2]
[366395719,1750230641887,-490.0,0.00016438,2]
[366395721,1750230641896,-490.0,0.00016438,2]
[366395723,1750230641906,-490.0,0.00016438,2]
[366395725,1750230641915,-490.0,0.00016438,2]
[366395727,1750230641925,-490.0,0.00016438,2]
[366395729,1750230641934,-555.87,0.00016438,2]
[366395731,1750230641944,-490.0,0.00016438,2]
[366395733,1750230641953,-825.95,0.00016438,2]
[366395735,1750230641962,-1926.35,0.00016438,2]
[366395737,1750230641973,-490.84069628,0.00016438,2]
[366395739,1750230641982,-621.36,0.00016438,2]
[366395741,1750230641992,-556.02,0.00016438,2]
[366395744,1750230642002,-490.0,0.00016438,2]
[366395745,1750230642012,-986.8,0.00016438,2]
[366395748,1750230642021,-490.0,0.00016438,2]
[366395750,1750230642031,-490.0,0.00016438,2]
[366395751,1750230642041,-490.0,0.00016438,2]
[366395752,1750230642051,-2000.01,0.00016438,2]
[366395753,1750230642061,-725.73,0.00016438,2]
[366395754,1750230642071,-353.53333005,0.00016438,2]
[366395755,1750230642080,-490.0,0.00016438,2]
[366395756,1750230642090,-1175.82,0.00016438,2]
[366395757,1750230642100,-490.0,0.00016438,2]
[366395758,1750230642111,-490.0,0.00016438,2]
[366395759,1750230642120,-842.31,0.00016438,2]
[366395760,1750230642130,-2722.99,0.00016438,2]
[366395762,1750230642139,-490.0,0.00016438,2]
[366395764,1750230642149,-490.0,0.00016438,2]
[366395766,1750230642158,-490.0,0.00016438,2]
[366395768,1750230642168,-500.0,0.00016438,2]
[366395770,1750230642177,-500.0,0.00016438,2]
[366395772,1750230642186,-848.93,0.00016438,2]
[366395774,1750230642196,-512.35,0.00016438,2]
[366395776,1750230642205,-500.0,0.00016438,2]
[366395778,1750230642215,-490.0,0.00016438,2]
[366395780,1750230642226,-948.99,0.00016438,2]
[366395782,1750230642235,-490.0,0.00016438,2]
[366395784,1750230642245,-1471.12,0.00016438,2]
[366395786,1750230642255,-490.0,0.00016438,2]
[366395788,1750230642266,-490.0,0.00016438,2]
[366395790,1750230642276,-494.78892502,0.00016438,2]
[366395792,1750230642286,-490.98,0.00016438,2]
[366395794,1750230642295,-490.0,0.00016438,2]
[366395796,1750230642305,-490.0,0.00016438,2]
[366395798,1750230642314,-490.0,0.00016438,2]
[366395800,1750230642323,-220.19524625,0.00016438,2]
[366395802,1750230642333,-490.0,0.00016438,2]
[366395804,1750230642341,-548.63712472,0.00016438,2]
[366395806,1750230642352,-490.0,0.00016438,2]
[366395808,1750230642362,-504.53013409,0.00016438,2]
[366395810,1750230642372,-490.0,0.00016438,2]
[366395811,1750230642382,-490.0,0.00016438,2]
[366395814,1750230642394,-490.0,0.00016438,2]
[366395815,1750230642406,-660.06,0.00016438,2]
[366395818,1750230642416,-490.0,0.00016438,2]
[366395820,1750230642426,-528.41,0.00016438,2]
[366395822,1750230642435,-496.53421635,0.00016438,2]
[366395824,1750230642443,-490.0,0.00016438,2]
[366395826,1750230642452,-490.0,0.00016438,2]
[366395828,1750230642462,-657.29,0.00016438,2]
[366395829,1750230642471,-490.0,0.00016438,2]
[366395832,1750230642480,-1349.21,0.00016438,2]
[366395836,1750230642490,-490.0,0.00016438,2]
[366395839,1750230642501,-490.0,0.00016438,2]
[366395842,1750230642512,-490.0,0.00016438,2]
[366395845,1750230642521,-490.0,0.00016438,2]
[366395847,1750230642530,-820.87,0.00016438,2]
[366395850,1750230642539,-511.16,0.00016438,2]
[366395853,1750230642549,-490.0,0.00016438,2]
[366395856,1750230642558,-490.0,0.00016438,2]
[366395861,1750230642567,-492.59062077,0.00016438,2]
[366395863,1750230642577,-1536.75,0.00016438,2]
[366395866,1750230642586,-1711.44,0.00016438,2]
[366395870,1750230642595,-490.0,0.00016438,2]
[366395873,1750230642605,-490.0,0.00016438,2]
[366395875,1750230642614,-1340.89,0.00016438,2]
[366395879,1750230642623,-490.0,0.00016438,2]
[366395881,1750230642633,-1861.69,0.00016438,2]
[366395884,1750230642643,-490.0,0.00016438,2]
[366395888,1750230642653,-490.0,0.00016438,2]
[366395890,1750230642663,-490.0,0.00016438,2]
[366395893,1750230642672,-490.0,0.00016438,2]
[366395896,1750230642682,-916.29,0.00016438,2]
[366395899,1750230642691,-490.0,0.00016438,2]
[366395903,1750230642701,-494.63486963,0.00016438,2]
[366395906,1750230642710,-490.0,0.00016438,2]
[366395909,1750230642719,-490.0,0.00016438,2]
[366395911,1750230642728,-490.0,0.00016438,2]
[366395915,1750230642737,-493.71019269,0.00016438,2]
[366395917,1750230642747,-1148.32,0.00016438,2]
[366395918,1750230642756,-490.0,0.00016438,2]
[366395921,1750230642766,-490.0,0.00016438,2]
[366395922,1750230642775,-490.0,0.00016438,2]
[366395925,1750230642784,-490.0,0.00016438,2]
[366395927,1750230642794,-490.0,0.00016438,2]
[366395929,1750230642804,-490.0,0.00016438,2]
[366395931,1750230642813,-617.91,0.00016438,2]
[366395933,1750230642825,-1137.67,0.00016438,2]
[366395935,1750230642834,-2472.57,0.00016438,2]
[366395937,1750230642844,-490.0,0.00016438,2]
[366395939,1750230642853,-696.26,0.00016438,2]
[366395941,1750230642863,-725.64,0.00016438,2]
[366395943,1750230642872,-496.24964688,0.00016438,2]
[366395945,1750230642882,-658.75,0.00016438,2]
[366395947,1750230642891,-490.0,0.00016438,2]
[366395949,1750230642900,-1967.95,0.00016438,2]
[366395951,1750230642910,-490.0,0.00016438,2]
[366395953,1750230642919,-1491.99,0.00016438,2]
[366395955,1750230642929,-490.0,0.00016438,2]
[366395957,1750230642938,-490.0,0.00016438,2]
[366395959,1750230642948,-490.0,0.00016438,2]
[366395961,1750230642957,-490.0,0.00016438,2]
[366395963,1750230642967,-151.0,0.00016438,2]
[366395965,1750230642976,-490.0,0.00016438,2]
[366395967,1750230642986,-1758.45,0.00016438,2]
[366395969,1750230642995,-490.0,0.00016438,2]
[366395971,1750230643005,-492.23124007,0.00016438,2]
[366395973,1750230643014,-521.76786814,0.00016438,2]
[366395975,1750230643024,-490.0,0.00016438,2]
[366395977,1750230643033,-567.44,0.00016438,2]
[366395979,1750230643042,-151.0,0.00016438,2]
[366395981,1750230643052,-490.0,0.00016438,2]
[366395983,1750230643061,-496.32680608,0.00016438,2]
[366395985,1750230643070,-490.0,0.00016438,2]
[366395987,1750230643080,-2345.48,0.00016438,2]
[366395989,1750230643089,-501.21507245,0.00016438,2]
[366395991,1750230643099,-490.0,0.00016438,2]
[366395993,1750230643112,-490.0,0.00016438,2]
[366395995,1750230643121,-498.39981582,0.00016438,2]
[366395997,1750230643130,-668.88,0.00016438,2]
[366395999,1750230643139,-1040.3,0.00016438,2]
[366396001,1750230643148,-605.25,0.00016438,2]
[366396004,1750230643157,-699.75,0.00016438,2]
[366396006,1750230643167,-490.0,0.00016438,2]
[366396008,1750230643176,-490.0,0.00016438,2]
[366396011,1750230643185,-490.0,0.00016438,2]
[366396013,1750230643194,-490.8852791,0.00016438,2]
[366396015,1750230643203,-490.0,0.00016438,2]
[366396017,1750230643213,-287.171088,0.00016438,2]
[366396019,1750230643223,-490.0,0.00016438,2]
[366396021,1750230643232,-1757.44,0.00016438,2]
[366396023,1750230643241,-494.49750189,0.00016438,2]
[366396025,1750230643251,-490.0,0.00016438,2]
[366396027,1750230643260,-490.0,0.00016438,2]
[366396030,1750230643270,-490.0,0.00016438,2]
[366396031,1750230643280,-932.24,0.00016438,2]
[366396033,1750230643289,-497.77,0.00016438,2]
[366396035,1750230643300,-490.0,0.00016438,2]
[366396037,1750230643310,-490.0,0.00016438,2]
[366396039,1750230643319,-490.0,0.00016438,2]
[366396041,1750230643328,-490.0,0.00016438,2]
[366396043,1750230643338,-1182.93,0.00016438,2]
[366396045,1750230643347,-490.0,0.00016438,2]
[366396047,1750230643356,-1470.34,0.00016438,2]
[366396049,1750230643365,-490.0,0.00016438,2]
[366396051,1750230643375,-490.0,0.00016438,2]
[366396053,1750230643384,-490.0,0.00016438,2]
[366396055,1750230643393,-490.0,0.00016438,2]
[366396057,1750230643403,-731.38,0.00016438,2]
[366396059,1750230643412,-490.0,0.00016438,2]
[366396061,1750230643422,-567.51,0.00016438,2]
[366396063,1750230643431,-490.0,0.00016438,2]
[366396065,1750230643440,-490.0,0.00016438,2]
[366396067,1750230643449,-1972.08,0.00016438,2]
[366396069,1750230643458,-574.95,0.00016438,2]
[366396071,1750230643467,-473.14624847,0.00016438,2]
[366396073,1750230643477,-502.41,0.00016438,2]
[366396075,1750230643486,-176.161001,0.00016438,2]
[366396077,1750230643494,-512.73,0.00016438,2]
[366396079,1750230643503,-490.0,0.00016438,2]
[366396081,1750230643512,-1611.48,0.00016438,2]
[366396083,1750230643521,-490.0,0.00016438,2]
[366396085,1750230643531,-490.0,0.00016438,2]
[366396087,1750230643540,-490.0,0.00016438,2]
[366396089,1750230643550,-490.0,0.00016438,2]
[366396091,1750230643560,-490.0,0.00016438,2]
[366396093,1750230643569,-490.0,0.00016438,2]
[366396095,1750230643578,-1366.99,0.00016438,2]
[366396097,1750230643587,-490.0,0.00016438,2]
[366396099,1750230643597,-539.59,0.00016438,2]
[366396101,1750230643607,-490.0,0.00016438,2]
[366396103,1750230643616,-593.86,0.00016438,2]
[366396105,1750230643626,-540.65,0.00016438,2]
[366396107,1750230643636,-490.0,0.00016438,2]
[366396109,1750230643645,-490.0,0.00016438,2]
[366396111,1750230643655,-490.0,0.00016438,2]
[366396113,1750230643664,-1000.0,0.00016438,2]
[366396115,1750230643673,-778.8,0.00016438,2]
[366396117,1750230643683,-151.0,0.00016438,2]
[366396119,1750230643692,-490.0,0.00016438,2]
[366396120,1750230643702,-503.94,0.00016438,2]
[366396123,1750230643712,-490.0,0.00016438,2]
[366396125,1750230643722,-1228.42,0.00016438,2]
[366396127,1750230643731,-490.0,0.00016438,2]
[366396129,1750230643741,-490.0,0.00016438,2]
[366396131,1750230643750,-151.0,0.00016438,2]
[366396133,1750230643759,-2046.85,0.00016438,2]
[366396135,1750230643767,-490.0,0.00016438,2]
[366396137,1750230643776,-502.78,0.00016438,2]
[366396139,1750230643784,-490.0,0.00016438,2]
[366396141,1750230643793,-710.87,0.00016438,2]
[366396143,1750230643802,-668.18,0.00016438,2]
[366396145,1750230643811,-678.96,0.00016438,2]
[366396147,1750230643820,-1728.94,0.00016438,2]
[366396149,1750230643830,-578.87,0.00016438,2]
[366396151,1750230643839,-1145.23,0.00016438,2]
[366396153,1750230643849,-1325.13,0.00016438,2]
[366396155,1750230643859,-1841.51,0.00016438,2]
[366396157,1750230643868,-490.0,0.00016438,2]
[366396159,1750230643878,-2243.18,0.00016438,2]
[366396161,1750230643887,-490.0,0.00016438,2]
[366396163,1750230643896,-490.0,0.00016438,2]
[366396165,1750230643906,-812.82,0.00016438,2]
[366396167,1750230643916,-490.0,0.00016438,2]
[366396169,1750230643926,-648.63,0.00016438,2]
[366396172,1750230643935,-490.0,0.00016438,2]
[366396174,1750230643944,-217.94031613,0.00016438,2]
[366396176,1750230643953,-150.0,0.00016438,2]
[366396178,1750230643962,-270.60830041,0.00016438,2]
[366396180,1750230643971,-150.0,0.00016438,2]
[366396182,1750230643980,-632.74,0.00016438,2]
[366396184,1750230643989,-500.0,0.00016438,2]
[366396186,1750230643999,-490.0,0.00016438,2]
[366396188,1750230644008,-490.0,0.00016438,2]
[366396190,1750230644017,-1166.03,0.00016438,2]
[366396192,1750230644026,-2204.29,0.00016438,2]
[366396194,1750230644035,-490.0,0.00016438,2]
[366396196,1750230644045,-152.11962139,0.00016438,2]
[366396198,1750230644053,-150.0,0.00016438,2]
[366396200,1750230644062,-150.0,0.00016438,2]
[366396202,1750230644071,-490.0,0.00016438,2]
[366396204,1750230644078,-1567.64,0.00016438,2]
[366396206,1750230644087,-3764.5,0.00016438,2]
[366396208,1750230644096,-1130.61,0.00016438,2]
[366396210,1750230644109,-151.0,0.00016438,2]
[366396212,1750230644119,-490.0,0.00016438,2]
[366396214,1750230644128,-490.0,0.00016438,2]
[366396217,1750230644139,-490.0,0.00016438,2]
[366396218,1750230644150,-490.0,0.00016438,2]
[366396220,1750230644159,-490.0,0.00016438,2]
[366396223,1750230644169,-490.0,0.00016438,2]
[366396225,1750230644180,-490.0,0.00016438,2]
[366396227,1750230644189,-628.67,0.00016438,2]
[366396229,1750230644200,-490.0,0.00016438,2]
[366396231,1750230644209,-17594.43,0.00016438,2]
[366396233,1750230644218,-1039.44,0.00016438,2]
[366396235,1750230644229,-490.0,0.00016438,2]
[366396237,1750230644238,-1839.44,0.00016438,2]
[366396239,1750230644247,-490.0,0.00016438,2]
[366396241,1750230644257,-490.0,0.00016438,2]
[366396243,1750230644266,-1599.47,0.00016438,2]
[366396245,1750230644275,-154.271015,0.00016438,2]
[366396247,1750230644284,-490.0,0.00016438,2]
[366396249,1750230644294,-4919.38,0.00016438,2]
[366396251,1750230644303,-2306.21,0.00016438,2]
[366396253,1750230644312,-908.5,0.00016438,2]
[366396255,1750230644322,-7771.26,0.00016438,2]
[366396257,1750230644331,-490.0,0.00016438,2]
[366396259,1750230644342,-1450.05,0.00016438,2]
[366396261,1750230644351,-165.936621,0.00016438,2]
[366396263,1750230644360,-1049.31,0.00016438,2]
[366396265,1750230644370,-490.0,0.00016438,2]
[366396267,1750230644381,-490.0,0.00016438,2]
[366396269,1750230644392,-490.0,0.00016438,2]
[366396271,1750230644402,-1599.41,0.00016438,2]
[366396273,1750230644413,-490.0,0.00016438,2]
[366396299,1750230644650,-1275.32,0.00016438,2]
[366396301,1750230644660,-490.0,0.00016438,2]
[366396304,1750230644670,-1295.99,0.00016438,2]
[366396306,1750230644681,-490.0,0.00016438,2]
[366396307,1750230644691,-1297.62,0.00016438,2]
[366396308,1750230644700,-490.0,0.00016438,2]
[366396309,1750230644710,-490.0,0.00016438,2]
[366396310,1750230644720,-992.92,0.00016438,2]
[366396311,1750230644729,-5852.3,0.00016438,2]
[366396312,1750230644739,-490.0,0.00016438,2]
[366396313,1750230644750,-490.0,0.00016438,2]
[366396314,1750230644759,-2627.42,0.00016438,2]
[366396315,1750230644769,-151.0,0.00016438,2]
[366396316,1750230644779,-1026.94,0.00016438,2]
[366396318,1750230644789,-6537.15,0.00016438,2]
[366396320,1750230644798,-490.0,0.00016438,2]
[366396322,1750230644808,-4456.64,0.00016438,2]
[366396324,1750230644818,-910.354394,0.00016438,2]
[366396326,1750230644828,-1575.57,0.00016438,2]
[366396328,1750230644838,-556.34,0.00016438,2]
[366396330,1750230644849,-490.0,0.00016438,2]
[366396332,1750230644859,-869.12,0.00016438,2]
[366396334,1750230644869,-490.0,0.00016438,2]
[366396336,1750230644879,-1160.61,0.00016438,2]
[366396338,1750230644889,-1261.68,0.00016438,2]
[366396341,1750230644899,-490.0,0.00016438,2]
[366396343,1750230644908,-2084.82,0.00016438,2]
[366396345,1750230644918,-1697.96,0.00016438,2]
[366396347,1750230644928,-677.55,0.00016438,2]
[366396348,1750230644938,-22297.49,0.00016438,2]
[366396351,1750230644950,-2836.93,0.00016438,2]
[366396352,1750230644959,-490.0,0.00016438,2]
[366396355,1750230644969,-490.0,0.00016438,2]
[366396357,1750230644978,-678.79,0.00016438,2]
[366396358,1750230644988,-500.30238234,0.00016438,2]
[366396361,1750230644999,-578.87,0.00016438,2]
[366396363,1750230645008,-3449.48,0.00016438,2]
[366396365,1750230645018,-490.0,0.00016438,2]
[366396367,1750230645028,-490.0,0.00016438,2]
[366396369,1750230645038,-563.11,0.00016438,2]
[366396371,1750230645047,-1723.04,0.00016438,2]
[366396372,1750230645057,-1391.9,0.00016438,2]
[366396374,1750230645067,-953.34,0.00016438,2]
[366396376,1750230645077,-7860.02,0.00016438,2]
[366396378,1750230645086,-1141.59,0.00016438,2]
[366396379,1750230645096,-291.38203482,0.00016438,2]
[366396381,1750230645109,-1585.97,0.00016438,2]
[366396383,1750230645118,-490.0,0.00016438,2]
[366396385,1750230645128,-809.73,0.00016438,2]
[366396387,1750230645138,-1291.35,0.00016438,2]
[366396389,1750230645147,-490.0,0.00016438,2]
[366396391,1750230645157,-500.0,0.00016438,2]
[366396393,1750230645166,-150.0,0.00016438,2]
[366396395,1750230645175,-490.0,0.00016438,2]
[366396397,1750230645185,-150.0,0.00016438,2]
[366396399,1750230645194,-1204.62,0.00016438,2]
[366396401,1750230645204,-4500.06,0.00016438,2]
[366396403,1750230645213,-490.0,0.00016438,2]
[366396405,1750230645223,-3345.89,0.00016438,2]
[366396407,1750230645233,-500.0,0.00016438,2]
[366396409,1750230645243,-2551.37,0.00016438,2]
[366396411,1750230645253,-1975.17,0.00016438,2]
[366396413,1750230645262,-1631.99,0.00016438,2]
[366396415,1750230645272,-490.0,0.00016438,2]
[366396417,1750230645281,-500.0,0.00016438,2]
[366396419,1750230645290,-2926.027524,0.00016438,2]
[366396421,1750230645300,-490.0,0.00016438,2]
[366396422,1750230645310,-490.0,0.00016438,2]
[366396424,1750230645319,-150.0,0.00016438,2]
[366396426,1750230645329,-1195.4,0.00016438,2]
[366396428,1750230645338,-521.03,0.00016438,2]
[366396430,1750230645347,-531.77,0.00016438,2]
[366396432,1750230645358,-160.941803,0.00016438,2]
[366396434,1750230645368,-150.0,0.00016438,2]
[366396436,1750230645377,-594.13,0.00016438,2]
[366396438,1750230645387,-490.0,0.00016438,2]
[366396440,1750230645396,-1307.28,0.00016438,2]
[366396443,1750230645406,-153.5086134,0.00016438,2]
[366396446,1750230645415,-1154.18,0.00016438,2]
[366396449,1750230645425,-490.0,0.00016438,2]
[366396452,1750230645434,-150.89217555,0.00016438,2]
[366396454,1750230645444,-490.0,0.00016438,2]
[366396456,1750230645453,-150.0,0.00016438,2]
[366396458,1750230645463,-490.0,0.00016438,2]
[366396460,1750230645472,-490.0,0.00016438,2]
[366396462,1750230645482,-692.43,0.00016438,2]
[366396464,1750230645491,-161.184063,0.00016438,2]
[366396466,1750230645501,-2203.92,0.00016438,2]
[366396468,1750230645510,-2203.92,0.00016438,2]
[366396470,1750230645520,-803.54,0.00016438,2]
[366396472,1750230645529,-4482.7,0.00016438,2]
[366396474,1750230645539,-2203.92,0.00016438,2]
[366396476,1750230645548,-818.29,0.00016438,2]
[366396478,1750230645559,-1151.91,0.00016438,2]
[366396480,1750230645569,-490.0,0.00016438,2]
[366396482,1750230645579,-2889.51,0.00016438,2]
[366396484,1750230645588,-1317.23,0.00016438,2]
[366396486,1750230645598,-3062.38,0.00016438,2]
[366396488,1750230645608,-490.0,0.00016438,2]
[366396490,1750230645618,-1984.01,0.00016438,2]
[366396492,1750230645628,-165.63971983,0.00016438,2]
[366396494,1750230645637,-490.0,0.00016438,2]
[366396496,1750230645647,-159.90616622,0.00016438,2]
[366396498,1750230645656,-500.0,0.00016438,2]
[366396500,1750230645667,-1984.74,0.00016438,2]
[366396502,1750230645677,-490.0,0.00016438,2]
[366396504,1750230645686,-359.82840406,0.00016438,2]
[366396506,1750230645696,-7478.91,0.00016438,2]
[366396508,1750230645706,-490.0,0.00016438,2]
[366396510,1750230645715,-166.09598375,0.00016438,2]
[366396512,1750230645725,-490.0,0.00016438,2]
[366396514,1750230645735,-3362.37,0.00016438,2]
[366396516,1750230645744,-1923.45,0.00016438,2]
[366396518,1750230645754,-538.21,0.00016438,2]
[366396520,1750230645764,-490.0,0.00016438,2]
[366396522,1750230645774,-490.0,0.00016438,2]
[366396524,1750230645783,-1573.93,0.00016438,2]
[366396526,1750230645792,-490.0,0.00016438,2]
[366396528,1750230645802,-9366.78,0.00016438,2]
[366396530,1750230645811,-2167.41,0.00016438,2]
[366396532,1750230645822,-1871.26,0.00016438,2]
[366396534,1750230645832,-490.0,0.00016438,2]
[366396536,1750230645842,-6434.11,0.00016438,2]
[366396538,1750230645851,-909.57,0.00016438,2]
[366396540,1750230645862,-490.0,0.00016438,2]
[366396542,1750230645874,-1776.09,0.00016438,2]
[366396544,1750230645883,-490.0,0.00016438,2]
[366396546,1750230645893,-609.28,0.00016438,2]
[366396548,1750230645904,-1298.54,0.00016438,2]
[366396550,1750230645914,-874.17,0.00016438,2]
[366396552,1750230645924,-1551.59,0.00016438,2]
[366396554,1750230645934,-525.73,0.00016438,2]
[366396556,1750230645945,-2501.31,0.00016438,2]
[366396558,1750230645955,-490.0,0.00016438,2]
[366396560,1750230645964,-490.0,0.00016438,2]
[366396562,1750230645975,-490.0,0.00016438,2]
[366396564,1750230645984,-3649.19,0.00016438,2]
[366396566,1750230645994,-490.0,0.00016438,2]
[366396568,1750230646003,-3302.65,0.00016438,2]
[366396570,1750230646013,-490.0,0.00016438,2]
[366396572,1750230646023,-490.0,0.00016438,2]
[366396575,1750230646032,-629.72,0.00016438,2]
[366396577,1750230646042,-490.0,0.00016438,2]
[366396579,1750230646052,-5364.63,0.00016438,2]
[366396581,1750230646062,-1860.01,0.00016438,2]
[366396583,1750230646072,-490.0,0.00016438,2]
[366396585,1750230646081,-490.0,0.00016438,2]
[366396588,1750230646091,-490.0,0.00016438,2]
[366396590,1750230646101,-786.97,0.00016438,2]
[366396592,1750230646113,-490.0,0.00016438,2]
[366396594,1750230646123,-150.0,0.00016438,2]
[366396596,1750230646132,-709.03,0.00016438,2]
[366396597,1750230646142,-490.0,0.00016438,2]
[366396599,1750230646151,-615.53,0.00016438,2]
[366396601,1750230646162,-2388.51,0.00016438,2]
[366396603,1750230646172,-169.135622,0.00016438,2]
[366396606,1750230646181,-495.41079905,0.00016438,2]
[366396607,1750230646190,-1015.18,0.00016438,2]
[366396609,1750230646200,-2485.5,0.00016438,2]
[366396611,1750230646210,-151.0,0.00016438,2]
[366396614,1750230646220,-490.0,0.00016438,2]
[366396616,1750230646229,-879.72,0.00016438,2]
[366396618,1750230646239,-796.88,0.00016438,2]
[366396620,1750230646249,-169.135622,0.00016438,2]
[366396621,1750230646259,-2771.78,0.00016438,2]
[366396624,1750230646269,-490.0,0.00016438,2]
[366396626,1750230646279,-1125.93,0.00016438,2]
[366396628,1750230646288,-1845.91,0.00016438,2]
[366396630,1750230646298,-151.0,0.00016438,2]
[366396631,1750230646307,-490.0,0.00016438,2]
[366396633,1750230646317,-8590.2,0.00016438,2]
[366396636,1750230646327,-12341.89,0.00016438,2]
[366396637,1750230646336,-2422.37,0.00016438,2]
[366396640,1750230646346,-1290.97,0.00016438,2]
[366396641,1750230646355,-558.65171475,0.00016438,2]
[366396644,1750230646365,-490.0,0.00016438,2]
[366396645,1750230646374,-490.0,0.00016438,2]
[366396647,1750230646384,-4651.83,0.00016438,2]
[366396650,1750230646394,-490.0,0.00016438,2]
[366396652,1750230646405,-3335.94,0.00016438,2]